lending/lending_fUSD_20251022
["ID","MTS","AMOUNT","RATE_DAILY","PERIOD"]
[392077420,1761137455294,-500.0,0.00044383,120]
[392077421,1761137455303,-500.0,0.00044383,120]
[392077422,1761137455313,-500.0,0.00044383,120]
[392077423,1761137455322,-1791.81,0.00044383,120]
[392077424,1761137455331,-500.0,0.00044383,2]
[392077425,1761137455341,-516.69,0.00044383,120]
[392077426,1761137455350,-500.0,0.00044383,120]
[392077427,1761137455360,-500.0,0.00044383,120]
[392077428,1761137455369,-500.0,0.00044383,3]
[392077429,1761137455379,-1704.96,0.00044383,120]
[392077430,1761137455389,-774.46,0.00044383,120]
[392077431,1761137455399,-684.88,0.00044383,120]
[392077432,1761137455410,-903.57,0.00044383,120]
[392077433,1761137455420,-500.0,0.00044383,120]
[392077434,1761137455429,-500.0,0.00044383,120]
[392077435,1761137455439,-500.0,0.00044383,120]
[392077436,1761137455448,-500.0,0.00044383,120]
[392077437,1761137455457,-500.0,0.00044383,120]
[392077438,1761137455465,-500.0,0.00044383,120]
[392077439,1761137455475,-500.08,0.00044383,120]
[392077440,1761137455484,-500.0,0.00044383,120]
[392077441,1761137455494,-976.02,0.00044383,120]
[392077442,1761137455504,-1123.28,0.00044383,120]
[392077443,1761137455513,-791.42,0.00044383,120]
[392077444,1761137455522,-500.0,0.00044383,120]
[392077445,1761137455531,-1380.66,0.00044383,120]
[392077446,1761137455541,-500.0,0.00044383,120]
[392077447,1761137455550,-777.97,0.00044383,120]
[392077448,1761137455559,-500.0,0.00044383,120]
[392077449,1761137455569,-1069.18,0.00044383,120]
[392077450,1761137455578,-550.13,0.00044383,120]
[392077451,1761137455588,-500.0,0.00044383,120]
[392077452,1761137455597,-500.0,0.00044383,120]
[392077453,1761137455744,-500.0,0.00044383,120]
[392077454,1761137455754,-500.0,0.00044383,120]
[392077455,1761137455763,-500.0,0.00044383,120]
[392077456,1761137455774,-500.0,0.00044383,120]
[392077457,1761137455783,-500.0,0.00044383,120]
[392077458,1761137455792,-657.62,0.00044383,120]
[392077459,1761137455802,-500.0,0.00044383,120]
[392077460,1761137455812,-741.11,0.00044383,120]
[392077461,1761137455822,-546.69,0.00044383,120]
[392077462,1761137455831,-500.0,0.00044383,120]
[392077463,1761137455843,-868.99,0.00044383,120]
[392077464,1761137455854,-500.0,0.00044383,120]
[392077465,1761137455867,-218.77646832,0.00044383,120]
[392077466,1761137455877,-606.94291602,0.00044383,120]
[392077467,1761137455887,-749.46,0.00044383,120]
[392077468,1761137455896,-500.0,0.00044383,120]
[392077469,1761137455906,-410.68196558,0.00044383,120]
[392077470,1761137455915,-500.0,0.00044383,120]
[392077471,1761137455924,-1632.62,0.00044383,120]
[392077472,1761137455933,-1268.92,0.00044383,120]
[392077473,1761137455942,-500.0,0.00044383,120]
[392077474,1761137455952,-1515.76,0.00044383,120]
[392077475,1761137455961,-500.0,0.00044383,120]
[392077476,1761137455970,-500.0,0.00044383,120]
[392077477,1761137455979,-500.0,0.00044383,120]
[392077478,1761137455988,-500.0,0.00044383,120]
[392077479,1761137455998,-500.0,0.00044383,120]
[392077480,1761137456007,-1021.54,0.00044383,120]
[392077481,1761137456016,-500.0,0.00044383,120]
[392077482,1761137456026,-500.0,0.00044383,120]
[392077483,1761137456035,-191.85785068,0.00044383,120]
[392077484,1761137456044,-500.0,0.00044383,120]
[392077485,1761137456053,-1000.0,0.00044383,30]
[392077486,1761137456062,-356.65,0.000444,30]
[392077487,1761137456072,-2248.9,0.000444,14]
[392077488,1761137456081,-338.94995822,0.00044439,120]
[392077489,1761137456091,-194.99,0.00044459,120]
[392077490,1761137456100,-688.01253649,0.00044493,15]
[392077491,1761137456110,-374.68584808,0.00044557,15]
[392077492,1761137456119,-500.0,0.00044646,120]
[392077493,1761137456129,-1999.0,0.00044646,120]
[392077494,1761137456138,-247.42316911,0.00044654,120]
[392077495,1761137456148,-10000.0,0.00044656,70]
[392077496,1761137456157,-500.0,0.00044656,120]
[392077497,1761137456167,-500.0,0.00044656,120]
[392077498,1761137456177,-683.25,0.00044657,120]
[392077499,1761137456186,-668.65,0.00044657,60]
[392077500,1761137456196,-500.0,0.00044657,120]
[392077501,1761137456206,-500.0,0.00044657,120]
[392077502,1761137456215,-500.0,0.00044657,120]
[392077503,1761137456225,-508.93202967,0.00044657,120]
[392077504,1761137456235,-500.0,0.00044657,120]
[392077505,1761137456244,-500.0,0.00044657,120]
[392077506,1761137456253,-500.0,0.00044657,120]
[392077507,1761137456264,-504.28,0.00044657,120]
[392077508,1761137456273,-500.0,0.00044657,120]
[392077509,1761137456283,-500.0,0.00044657,120]
[392077510,1761137456293,-500.0,0.00044657,120]
[392077511,1761137456302,-500.0,0.00044657,120]
[392077512,1761137456312,-373.05675147,0.00044657,120]
[392077513,1761137456322,-500.0,0.00044657,120]
[392077514,1761137456331,-540.07700182,0.00044657,120]
[392077515,1761137456340,-500.0,0.00044657,120]
[392077516,1761137456350,-500.0,0.00044657,30]
[392077517,1761137456360,-500.0,0.00044657,120]
[392077518,1761137456370,-678.16,0.00044657,120]
[392077519,1761137456380,-419.01414282,0.00044657,120]
[392077520,1761137456389,-953.82,0.00044657,120]
[392077521,1761137456399,-1131.8,0.00044657,120]
[392077522,1761137456409,-538.28,0.00044657,120]
[392077523,1761137456419,-500.0,0.00044657,120]
[392077524,1761137456428,-1212.18,0.00044657,120]
[392077525,1761137456439,-642.42267808,0.00044657,120]
[392077526,1761137456448,-500.0,0.00044657,120]
[392077527,1761137456458,-500.0,0.00044657,120]
[392077528,1761137456467,-500.0,0.00044657,120]
[392077529,1761137456476,-500.0,0.00044657,120]
[392077530,1761137456486,-500.0,0.00044657,120]
[392077531,1761137456495,-971.57,0.00044657,120]
[392077532,1761137456505,-500.0,0.00044657,120]
[392077533,1761137456515,-500.0,0.00044657,120]
[392077534,1761137456524,-500.0,0.00044657,120]
[392077535,1761137456534,-500.0,0.00044657,120]
[392077536,1761137456543,-500.0,0.00044657,2]
[392077537,1761137456552,-500.0,0.00044657,2]
[392077538,1761137456561,-500.0,0.00044657,120]
[392077539,1761137456571,-500.0,0.00044657,90]
[392077540,1761137456580,-506.07,0.00044657,120]
[392077541,1761137456589,-500.0,0.00044657,120]
[392077542,1761137456598,-500.0,0.00044657,120]
[392077543,1761137456608,-500.0,0.00044657,120]
[392077544,1761137456617,-500.0,0.00044657,120]
[392077545,1761137456626,-787.36,0.00044657,120]
[392077546,1761137456636,-654.91,0.00044657,120]
[392077547,1761137456646,-609.54,0.00044657,120]
[392077548,1761137456655,-1546.84,0.00044657,120]
[392077549,1761137456665,-512.22,0.00044657,120]
[392077550,1761137456675,-500.0,0.00044657,120]
[392077551,1761137456684,-500.0,0.00044657,120]
[392077552,1761137456693,-500.0,0.00044657,120]
[392077553,1761137456702,-500.0,0.00044657,120]
[392077554,1761137456712,-584.83,0.00044657,120]
[392077555,1761137456721,-300.0,0.00044657,120]
[392077556,1761137456731,-500.0,0.00044657,120]
[392077557,1761137456740,-500.0,0.00044657,120]
[392077558,1761137456750,-500.0,0.00044657,12]
[392077559,1761137456760,-500.0,0.00044657,120]
[392077560,1761137456771,-500.0,0.00044657,120]
[392077561,1761137456782,-500.0,0.00044657,120]
[392077562,1761137456791,-536.00996277,0.00044657,120]
[392077563,1761137456800,-500.0,0.00044657,120]
[392077564,1761137456811,-500.0,0.00044657,120]
[392077565,1761137456820,-500.0,0.00044657,120]
[392077566,1761137456830,-500.0,0.00044657,120]
[392077567,1761137456840,-537.03,0.00044657,120]
[392077568,1761137456850,-500.0,0.00044657,120]
[392077569,1761137456860,-1006.19,0.00044657,120]
[392077570,1761137456869,-500.0,0.00044657,120]
[392077571,1761137456878,-500.0,0.00044657,120]
[392077572,1761137456888,-500.0,0.00044657,120]
[392077573,1761137456898,-768.78,0.00044657,120]
[392077574,1761137456907,-500.0,0.00044657,120]
[392077575,1761137456917,-515.05,0.00044657,120]
[392077576,1761137456927,-888.55,0.00044657,120]
[392077577,1761137456937,-1783.82,0.00044657,120]
[392077578,1761137456947,-500.0,0.00044657,120]
[392077579,1761137456957,-1004.91,0.00044657,120]
[392077580,1761137456966,-902.56,0.00044657,120]
[392077581,1761137456977,-500.0,0.00044657,120]
[392077582,1761137456986,-500.0,0.00044657,120]
[392077583,1761137456997,-797.64,0.00044657,120]
[392077584,1761137457008,-727.22,0.00044657,120]
[392077585,1761137457017,-500.0,0.00044657,120]
[392077586,1761137457026,-483.78386132,0.00044657,120]
[392077587,1761137457035,-500.0,0.00044657,120]
[392077588,1761137457045,-596.43,0.00044657,30]
[392077589,1761137457054,-500.0,0.00044657,120]
[392077590,1761137457064,-839.78,0.00044657,120]
[392077591,1761137457073,-1567.44,0.00044657,120]
[392077592,1761137457083,-978.8,0.00044657,120]
[392077593,1761137457092,-550.93,0.00044657,120]
[392077594,1761137457102,-500.0,0.00044657,120]
[392077595,1761137457112,-505.32579264,0.00044657,120]
[392077596,1761137457122,-500.0,0.00044657,120]
[392077597,1761137457131,-1200.44,0.00044657,120]
[392077598,1761137457140,-804.93,0.00044657,120]
[392077600,1761137457150,-739.04,0.00044657,120]
[392077601,1761137457159,-500.0,0.00044657,120]
[392077602,1761137457168,-500.0,0.00044657,120]
[392077603,1761137457178,-771.06,0.00044657,120]
[392077604,1761137457188,-794.03,0.00044657,120]
[392077605,1761137457197,-1137.8,0.00044657,120]
[392077606,1761137457207,-500.0,0.00044657,120]
[392077607,1761137457216,-165.89030765,0.00044657,120]
[392077608,1761137457226,-500.0,0.00044657,120]
[392077609,1761137457235,-500.0,0.00044657,120]
[392077610,1761137457245,-935.82,0.00044657,120]
[392077611,1761137457254,-500.0,0.00044657,120]
[392077612,1761137457263,-835.83,0.00044657,120]
[392077613,1761137457273,-1199.67,0.00044657,120]
[392077614,1761137457283,-696.26,0.00044657,120]
[392077615,1761137457293,-652.36,0.00044657,120]
[392077616,1761137457303,-500.0,0.00044657,120]
[392077617,1761137457312,-1077.51,0.00044657,120]
[392077618,1761137457321,-1098.31,0.00044657,120]
[392077619,1761137457331,-866.75,0.00044657,120]
[392077620,1761137457341,-500.0,0.00044657,120]
[392077621,1761137457350,-500.0,0.00044657,120]
[392077622,1761137457359,-500.0,0.00044657,120]
[392077623,1761137457369,-899.21,0.00044657,120]
[392077624,1761137457378,-683.69,0.00044657,120]
[392077625,1761137457387,-901.18,0.00044657,120]
[392077626,1761137457397,-500.0,0.00044657,120]
[392077627,1761137457406,-1139.36,0.00044657,120]
[392077628,1761137457416,-500.0,0.00044657,120]
[392077629,1761137457425,-978.62,0.00044657,120]
[392077630,1761137457434,-500.0,0.00044657,120]
[392077631,1761137457444,-500.0,0.00044657,120]
[392077632,1761137457453,-503.85,0.00044657,120]
[392077633,1761137457462,-500.0,0.00044657,120]
[392077634,1761137457472,-1709.15,0.00044657,120]
[392077635,1761137457481,-500.0,0.00044657,120]
[392077636,1761137457490,-1255.83,0.00044657,120]
[392077637,1761137457499,-500.0,0.00044657,120]
[392077638,1761137457509,-598.97,0.00044657,120]
[392077639,1761137457519,-363.66397468,0.00044657,60]
[392077640,1761137457529,-500.0,0.00044657,120]
[392077641,1761137457539,-553.94154633,0.00044657,120]
[392077642,1761137457548,-500.0,0.00044657,120]
[392077643,1761137457559,-500.0,0.00044657,120]
[392077644,1761137457569,-510.99562143,0.00044657,120]
[392077645,1761137457579,-500.0,0.00044657,120]
[392077646,1761137457589,-500.0,0.00044657,120]
[392077647,1761137457599,-500.0,0.00044657,120]
[392077648,1761137457609,-500.0,0.00044657,120]
[392077649,1761137457619,-500.0,0.00044657,120]
[392077650,1761137457629,-500.0,0.00044657,120]
[392077651,1761137457638,-500.0,0.00044657,120]
[392077652,1761137457648,-500.0,0.00044657,120]
[392077653,1761137457659,-913.64,0.00044657,2]
[392077654,1761137457669,-509.501983,0.00044657,120]
[392077655,1761137457679,-500.0,0.00044657,120]
[392077656,1761137457688,-505.92090546,0.00044657,120]
[392077657,1761137457699,-500.0,0.00044657,2]
[392077658,1761137457709,-788.16,0.00044657,120]
[392077659,1761137457719,-500.0,0.00044657,120]
[392077660,1761137457728,-572.17,0.00044657,120]
[392077661,1761137457737,-500.0,0.00044657,120]
[392077662,1761137457747,-500.0,0.00044657,120]
[392077663,1761137457757,-500.0,0.00044657,120]
[392077664,1761137457766,-500.0,0.00044657,120]
[392077665,1761137457779,-535.2744055,0.00044657,120]
[392077666,1761137457788,-500.0,0.00044657,120]
[392077667,1761137457798,-500.0,0.00044657,120]
[392077668,1761137457807,-500.0,0.00044657,120]
[392077669,1761137457817,-399.36610071,0.00044657,120]
[392077670,1761137457827,-1172.27,0.00044657,120]
[392077671,1761137457836,-514.80154704,0.00044657,120]
[392077672,1761137457847,-517.08457028,0.00044657,120]
[392077673,1761137457857,-500.0,0.00044657,120]
[392077674,1761137457867,-500.0,0.00044657,120]
[392077675,1761137457877,-379.86163658,0.00044657,120]
[392077676,1761137457887,-822.33,0.00044657,120]
[392077677,1761137457897,-300.0,0.00044657,2]
[392077678,1761137457907,-940.37,0.00044657,120]
[392077679,1761137457916,-500.0,0.00044657,120]
[392077680,1761137457926,-500.0,0.00044657,120]
[392077681,1761137457935,-1208.24,0.00044657,120]
[392077682,1761137457945,-647.81,0.00044657,120]
[392077683,1761137457955,-500.0,0.00044657,120]
[392077684,1761137457965,-500.0,0.00044657,120]
[392077685,1761137457975,-500.0,0.00044657,120]
[392077686,1761137457984,-903.67,0.00044657,120]
[392077687,1761137457994,-500.0,0.00044657,120]
[392077688,1761137458003,-701.38,0.00044657,120]
[392077689,1761137458013,-500.0,0.00044657,120]
[392077690,1761137458023,-500.0,0.00044657,120]
[392077691,1761137458033,-500.0,0.00044657,120]
[392077692,1761137458042,-726.04,0.00044657,120]
[392077693,1761137458052,-1257.65,0.00044657,120]
[392077694,1761137458063,-500.0,0.00044657,120]
[392077695,1761137458074,-1171.07,0.00044657,120]
[392077696,1761137458084,-500.0,0.00044657,120]
[392077697,1761137458094,-500.0,0.00044657,7]
[392077698,1761137458104,-966.41,0.00044657,120]
[392077699,1761137458113,-500.0,0.00044657,120]
[392077700,1761137458124,-468.93605062,0.00044657,120]
[392077701,1761137458133,-500.0,0.00044657,120]
[392077702,1761137458143,-838.16,0.00044657,120]
[392077703,1761137458152,-793.36,0.00044657,120]
[392077704,1761137458161,-650.24,0.00044657,120]
[392077705,1761137458170,-1000.0,0.00044657,120]
[392077706,1761137458180,-500.0,0.00044657,120]
[392077707,1761137458190,-500.0,0.00044657,120]
[392077708,1761137458200,-739.64,0.00044657,120]
[392077709,1761137458209,-1537.31,0.00044657,120]
[392077710,1761137458218,-300.0,0.00044657,2]
[392077711,1761137458228,-500.0,0.00044657,120]
[392077712,1761137458238,-500.0,0.00044657,120]
[392077713,1761137458247,-461.03505671,0.00044657,120]
[392077714,1761137458256,-1957.66,0.00044657,120]
[392077715,1761137458266,-500.0,0.00044657,120]
[392077716,1761137458275,-500.0,0.00044657,120]
[392077717,1761137458284,-500.0,0.00044657,16]
[392077718,1761137458294,-728.44,0.00044657,120]
[392077719,1761137458304,-500.0,0.00044657,120]
[392077720,1761137458314,-1020.65,0.00044657,120]
[392077721,1761137458324,-500.0,0.00044657,120]
[392077722,1761137458334,-500.0,0.00044657,120]
[392077723,1761137458343,-500.0,0.00044657,120]
[392077724,1761137458352,-500.0,0.00044657,120]
[392077725,1761137458362,-500.0,0.00044657,120]
[392077726,1761137458371,-500.0,0.00044657,120]
[392077727,1761137458381,-500.0,0.00044657,120]
[392077728,1761137458390,-500.0,0.00044657,120]
[392077729,1761137458400,-500.0,0.00044657,120]
[392077730,1761137458410,-500.0,0.00044657,120]
[392077731,1761137458419,-500.0,0.00044657,120]
[392077732,1761137458429,-500.0,0.00044657,120]
[392077733,1761137458438,-1283.72,0.00044657,120]
[392077734,1761137458448,-500.0,0.00044657,120]
[392077735,1761137458458,-507.24,0.00044657,120]
[392077736,1761137458469,-500.0,0.00044657,120]
[392077737,1761137458479,-500.0,0.00044657,120]
[392077738,1761137458490,-500.0,0.00044657,120]
[392077739,1761137458499,-1791.81,0.00044657,120]
[392077740,1761137458509,-500.0,0.00044657,2]
[392077741,1761137458518,-516.69,0.00044657,120]
[392077742,1761137458528,-500.0,0.00044657,120]
[392077743,1761137458537,-500.0,0.00044657,120]
[392077744,1761137458546,-513.69937906,0.00044657,3]
[392077745,1761137458556,-1704.96,0.00044657,120]
[392077746,1761137458565,-774.46,0.00044657,120]
[392077747,1761137458576,-684.88,0.00044657,120]
[392077748,1761137458586,-903.57,0.00044657,120]
[392077749,1761137458729,-500.0,0.00044657,120]
[392077750,1761137458740,-500.0,0.00044657,120]
[392077751,1761137458750,-500.0,0.00044657,120]
[392077752,1761137458759,-500.0,0.00044657,120]
[392077753,1761137458770,-500.0,0.00044657,120]
[392077754,1761137458782,-500.0,0.00044657,120]
[392077755,1761137458791,-500.08,0.00044657,120]
[392077756,1761137458800,-500.0,0.00044657,120]
[392077757,1761137458811,-976.02,0.00044657,120]
[392077758,1761137458820,-1123.28,0.00044657,120]
[392077759,1761137458829,-791.42,0.00044657,120]
[392077760,1761137458838,-500.0,0.00044657,120]
[392077761,1761137458850,-1380.66,0.00044657,120]
[392077762,1761137458858,-500.0,0.00044657,120]
[392077763,1761137458867,-777.97,0.00044657,120]
[392077764,1761137458875,-500.0,0.00044657,120]
[392077765,1761137458884,-1069.18,0.00044657,120]
[392077766,1761137458894,-550.13,0.00044657,120]
[392077767,1761137458904,-500.0,0.00044657,120]
[392077768,1761137458914,-500.0,0.00044657,120]
[392077769,1761137458923,-500.0,0.00044657,120]
[392077770,1761137458933,-500.0,0.00044657,120]
[392077771,1761137458942,-542.43156452,0.00044657,120]
[392077772,1761137458952,-500.0,0.00044657,120]
[392077773,1761137458962,-500.0,0.00044657,120]
[392077774,1761137458971,-657.62,0.00044657,120]
[392077775,1761137458980,-500.0,0.00044657,120]
[392077776,1761137458990,-741.11,0.00044657,120]
[392077777,1761137459000,-546.69,0.00044657,120]
[392077778,1761137459009,-500.0,0.00044657,120]
[392077779,1761137459019,-868.99,0.00044657,120]
[392077780,1761137459028,-500.0,0.00044657,120]
[392077781,1761137459039,-749.46,0.00044657,120]
[392077782,1761137459048,-500.0,0.00044657,120]
[392077783,1761137459058,-500.0,0.00044657,120]
[392077784,1761137459067,-1632.62,0.00044657,120]
[392077785,1761137459077,-1268.92,0.00044657,120]
[392077786,1761137459086,-613.05060677,0.00044657,120]
[392077787,1761137459095,-1515.76,0.00044657,120]
[392077788,1761137459104,-500.0,0.00044657,120]
[392077789,1761137459113,-500.0,0.00044657,120]
[392077790,1761137459122,-500.0,0.00044657,120]
[392077791,1761137459132,-500.0,0.00044657,120]
[392077792,1761137459143,-1021.54,0.00044657,120]
[392077793,1761137459152,-500.0,0.00044657,120]
[392077794,1761137459162,-500.0,0.00044657,120]
[392077795,1761137459172,-249.59983788,0.00044657,120]
[392077796,1761137459182,-1000.0,0.00044673,10]
[392077797,1761137459191,-300.0,0.000447,14]
[392077798,1761137459200,-300.0,0.000447,14]
[392077799,1761137459210,-1037.86509974,0.000448,120]
[392077800,1761137459219,-374.68584808,0.00044831,15]
[392077801,1761137459229,-688.01253649,0.00044851,15]
[392077802,1761137459238,-1664.20274299,0.000449,120]
[392077803,1761137459247,-1267.71,0.000449,120]
[392077804,1761137459256,-156.55509024,0.000449,120]
[392077805,1761137459266,-156.55509022,0.000449,120]
[392077806,1761137459276,-156.55509022,0.000449,120]
[392077807,1761137459285,-166.19,0.000449,23]
[392077808,1761137459295,-156.55509022,0.000449,120]
[392077809,1761137459305,-156.55509022,0.000449,120]
[392077810,1761137459315,-250.0,0.00044921,10]
[392077811,1761137459325,-500.0,0.0004493,120]
[392077812,1761137459335,-683.25,0.00044931,120]
[392077813,1761137459344,-668.65,0.00044931,60]
[392077814,1761137459354,-500.0,0.00044931,120]
[392077815,1761137459364,-500.0,0.00044931,120]
[392077816,1761137459373,-424.97888944,0.00044931,120]
[392077817,1761137459383,-500.0,0.00044931,120]
[392077818,1761137459393,-500.0,0.00044931,120]
[392077819,1761137459403,-306.08156098,0.00044931,120]
[392077820,1761137459412,-504.28,0.00044931,120]
[392077821,1761137459422,-500.0,0.00044931,120]
[392077822,1761137459432,-595.71188105,0.00044931,120]
[392077823,1761137459441,-500.0,0.00044931,120]
[392077824,1761137459451,-500.0,0.00044931,120]
[392077825,1761137459461,-500.0,0.00044931,120]
[392077826,1761137459470,-500.0,0.00044931,120]
[392077827,1761137459479,-500.0,0.00044931,30]
[392077828,1761137459488,-500.0,0.00044931,120]
[392077829,1761137459498,-678.16,0.00044931,120]
[392077830,1761137459507,-953.82,0.00044931,120]
[392077831,1761137459516,-1131.8,0.00044931,120]
[392077832,1761137459526,-538.28,0.00044931,120]
[392077833,1761137459536,-500.0,0.00044931,120]
[392077834,1761137459546,-1212.18,0.00044931,120]
[392077835,1761137459555,-500.0,0.00044931,120]
[392077836,1761137459564,-500.0,0.00044931,120]
[392077837,1761137459574,-500.0,0.00044931,120]
[392077838,1761137459583,-500.0,0.00044931,120]
[392077839,1761137459592,-500.0,0.00044931,120]
[392077840,1761137459602,-971.57,0.00044931,120]
[392077841,1761137459612,-342.03601249,0.00044931,120]
[392077842,1761137459622,-500.0,0.00044931,120]
[392077843,1761137459632,-500.0,0.00044931,120]
[392077844,1761137459642,-500.0,0.00044931,120]
[392077845,1761137459650,-500.0,0.00044931,2]
[392077846,1761137459660,-500.0,0.00044931,2]
[392077847,1761137459669,-500.0,0.00044931,120]
[392077848,1761137459678,-500.0,0.00044931,90]
[392077849,1761137459687,-506.07,0.00044931,120]
[392077850,1761137459697,-500.0,0.00044931,120]
[392077851,1761137459706,-500.0,0.00044931,120]
[392077852,1761137459716,-500.0,0.00044931,120]
[392077853,1761137459725,-500.0,0.00044931,120]
[392077854,1761137459735,-787.36,0.00044931,120]
[392077855,1761137459744,-654.91,0.00044931,120]
[392077856,1761137459754,-609.54,0.00044931,120]
[392077857,1761137459766,-1546.84,0.00044931,120]
[392077858,1761137459780,-512.22,0.00044931,120]
[392077859,1761137459789,-500.0,0.00044931,120]
[392077860,1761137459799,-500.0,0.00044931,120]
[392077861,1761137459808,-500.0,0.00044931,120]
[392077862,1761137459819,-500.0,0.00044931,120]
[392077863,1761137459829,-584.83,0.00044931,120]
[392077864,1761137459839,-300.0,0.00044931,120]
[392077865,1761137459851,-500.0,0.00044931,120]
[392077866,1761137459860,-159.16610065,0.00044931,120]
[392077867,1761137459869,-500.0,0.00044931,12]
[392077868,1761137459878,-233.54811008,0.00044931,120]
[392077869,1761137459887,-500.0,0.00044931,120]
[392077870,1761137459897,-500.0,0.00044931,120]
[392077871,1761137459906,-500.0,0.00044931,120]
[392077872,1761137459915,-506.1265657,0.00044931,120]
[392077873,1761137459924,-500.0,0.00044931,120]
[392077874,1761137459935,-537.03,0.00044931,120]
[392077875,1761137459945,-500.0,0.00044931,120]
[392077876,1761137459954,-1006.19,0.00044931,120]
[392077877,1761137459963,-500.0,0.00044931,120]
[392077878,1761137459973,-500.0,0.00044931,120]
[392077879,1761137459982,-500.0,0.00044931,120]
[392077880,1761137459991,-768.78,0.00044931,120]
[392077881,1761137460000,-277.93297028,0.00044931,120]
[392077882,1761137460009,-515.05,0.00044931,120]
[392077883,1761137460018,-888.55,0.00044931,120]
[392077884,1761137460028,-1783.82,0.00044931,120]
[392077885,1761137460037,-469.21980212,0.00044931,120]
[392077886,1761137460048,-1004.91,0.00044931,120]
[392077887,1761137460058,-902.56,0.00044931,120]
[392077888,1761137460068,-500.0,0.00044931,120]
[392077889,1761137460078,-500.0,0.00044931,120]
[392077890,1761137460087,-797.64,0.00044931,120]
[392077891,1761137460097,-727.22,0.00044931,120]
[392077892,1761137460107,-500.0,0.00044931,120]
[392077893,1761137460118,-500.0,0.00044931,120]
[392077894,1761137460128,-596.43,0.00044931,30]
[392077895,1761137460138,-376.56180578,0.00044931,120]
[392077896,1761137460147,-839.78,0.00044931,120]
[392077897,1761137460156,-1567.44,0.00044931,120]
[392077898,1761137460166,-978.8,0.00044931,120]
[392077899,1761137460175,-550.93,0.00044931,120]
[392077900,1761137460185,-500.0,0.00044931,120]
[392077901,1761137460194,-500.0,0.00044931,120]
[392077902,1761137460204,-1200.44,0.00044931,120]
[392077903,1761137460213,-804.93,0.00044931,120]
[392077904,1761137460222,-739.04,0.00044931,120]
[392077905,1761137460232,-500.0,0.00044931,120]
[392077906,1761137460241,-500.0,0.00044931,120]
[392077907,1761137460251,-771.06,0.00044931,120]
[392077908,1761137460261,-794.03,0.00044931,120]
[392077909,1761137460270,-1137.8,0.00044931,120]
[392077910,1761137460281,-500.0,0.00044931,120]
[392077911,1761137460290,-500.0,0.00044931,120]
[392077912,1761137460300,-500.0,0.00044931,120]
[392077913,1761137460310,-935.82,0.00044931,120]
[392077914,1761137460319,-500.0,0.00044931,120]
[392077915,1761137460328,-835.83,0.00044931,120]
[392077916,1761137460338,-1199.67,0.00044931,120]
[392077917,1761137460348,-696.26,0.00044931,120]
[392077918,1761137460357,-652.36,0.00044931,120]
[392077919,1761137460366,-500.0,0.00044931,120]
[392077920,1761137460376,-1077.51,0.00044931,120]